bitfinex/quotes_BTCUSD_20250920
["timestamp","ask_amount","ask_price","bid_price","bid_amount"]
[1758411061723,1.64957567,115840.0,115830.0,0.06466476]
[1758411061931,1.3271819,115840.0,115830.0,0.06466476]
[1758411062110,1.64957567,115840.0,115830.0,0.06466476]
[1758411062319,1.70241934,115840.0,115830.0,0.06466476]
[1758411062526,1.78768901,115840.0,115830.0,0.06466476]
[1758411063064,1.78768901,115840.0,115830.0,0.06349476]
[1758411063298,1.77155081,115840.0,115830.0,0.06349476]
[1758411064165,1.78770319,115840.0,115830.0,0.06349476]
[1758411064812,1.46530942,115840.0,115830.0,0.06349476]
[1758411065016,1.78770319,115840.0,115830.0,0.06349476]
[1758411066397,1.77155081,115840.0,115830.0,0.06349476]
[1758411066923,2.09390458,115840.0,115830.0,0.06349476]
[1758411067118,2.13758257,115840.0,115830.0,0.06349476]
[1758411067475,1.49279503,115840.0,115830.0,0.06349476]
[1758411067677,2.13758257,115840.0,115830.0,0.06349476]
[1758411068323,2.13258257,115840.0,115830.0,0.06349476]
[1758411068516,2.13158257,115840.0,115830.0,0.06349476]
[1758411068724,2.13658257,115840.0,115830.0,0.06349476]
[1758411068920,2.13758257,115840.0,115830.0,0.06349476]
[1758411069330,2.13657865,115840.0,115830.0,0.06349476]
[1758411069547,2.13157865,115840.0,115830.0,0.06349476]
[1758411069754,2.13857865,115840.0,115830.0,0.06349476]
[1758411070054,2.12243065,115840.0,115830.0,0.06349476]
[1758411072129,2.1224335,115840.0,115830.0,0.06349476]
[1758411074156,2.11435512,115840.0,115830.0,0.06349476]
[1758411074859,2.12242726,115840.0,115830.0,0.06349476]
[1758411075686,2.14839005,115840.0,115830.0,0.06349476]
[1758411079123,2.14838842,115840.0,115830.0,0.06349476]
[1758411085492,1.50360088,115840.0,115830.0,0.06349476]
[1758411085748,2.14838842,115840.0,115830.0,0.06349476]
[1758411086480,1.23408088,115840.0,115830.0,0.06349476]
[1758411086726,2.14822842,115840.0,115830.0,0.06349476]
[1758411088223,2.16437158,115840.0,115830.0,0.06349476]
[1758411095973,1.84206382,115840.0,115830.0,0.06349476]
[1758411096927,1.84206995,115840.0,115830.0,0.06349476]
[1758411104924,1.84207362,115840.0,115830.0,0.06349476]
[1758411107194,1.83601898,115840.0,115830.0,0.06349476]
[1758411107368,1.84207699,115840.0,115830.0,0.06349476]
[1758411108998,2.21555699,115840.0,115830.0,0.06349476]
[1758411116349,1.89308506,115840.0,115830.0,0.06349476]
[1758411116576,2.21555699,115840.0,115830.0,0.06349476]
[1758411119355,2.21555896,115840.0,115830.0,0.06349476]
[1758411126355,1.89308703,115840.0,115830.0,0.06349476]
[1758411126863,2.21555896,115840.0,115830.0,0.06349476]
[1758411129194,1.94619896,115840.0,115830.0,0.06349476]
[1758411129395,2.21499896,115840.0,115830.0,0.06349476]
[1758411130163,2.21499761,115840.0,115830.0,0.06349476]
[1758411132024,1.89252568,115840.0,115830.0,0.06349476]
[1758411132416,2.21499761,115840.0,115830.0,0.06349476]
[1758411132889,1.84151761,115840.0,115830.0,0.06349476]
[1758411138343,1.81203761,115840.0,115830.0,0.06466476]
[1758411138701,1.81407761,115840.0,115830.0,0.06466476]
[1758411138932,1.84114761,115840.0,115830.0,0.06349476]
[1758411139321,1.22076568,115840.0,115830.0,0.06466476]
[1758411139519,1.32317437,115840.0,115830.0,0.07051476]
[1758411139724,1.66791637,115840.0,115830.0,0.07051476]
[1758411140231,1.69806827,115840.0,115830.0,0.07051476]
[1758411140434,1.78333794,115840.0,115830.0,0.06978476]
[1758411142334,1.78333794,115840.0,115830.0,0.06466476]
[1758411143519,1.77933794,115840.0,115830.0,0.06466476]
[1758411143737,1.18518601,115840.0,115830.0,0.06466476]
[1758411143932,1.50765794,115840.0,115830.0,0.06978476]
[1758411144260,1.78533794,115840.0,115830.0,0.06978476]
[1758411144462,1.77633794,115840.0,115830.0,0.06978476]
[1758411144703,1.78033794,115840.0,115830.0,0.06566476]
[1758411144923,1.78133794,115840.0,115830.0,0.06566476]
[1758411146407,0.26211251,115840.0,115830.0,0.38886669]
[1758411146628,0.39902142,115840.0,115830.0,0.56665352]
[1758411146838,0.39902142,115840.0,115830.0,0.5926096]
[1758411147258,0.367,115840.0,115830.0,0.5926096]
[1758411148516,0.09832,115840.0,115830.0,0.5926096]
[1758411148731,0.36704,115840.0,115830.0,0.5926096]
[1758411149531,0.36304,115840.0,115830.0,0.5916096]
[1758411149729,0.36704,115840.0,115830.0,0.5926096]
[1758411149940,0.36604,115840.0,115830.0,0.5926096]
[1758411150165,0.36704,115840.0,115830.0,0.5936096]
[1758411151019,0.36704,115840.0,115830.0,0.27113767]
[1758411151230,0.36704,115840.0,115830.0,0.5936096]
[1758411157824,0.36704,115840.0,115830.0,0.59343151]
[1758411161366,0.36704,115840.0,115830.0,0.59270151]
[1758411164029,0.36688,115840.0,115830.0,0.91572535]
[1758411164172,0.36688,115840.0,115830.0,0.59343151]
[1758411166551,0.36688,115840.0,115830.0,0.59270151]
[1758411170029,0.36688,115840.0,115830.0,0.58758151]
[1758411177222,0.36288,115840.0,115830.0,0.58658151]
[1758411177422,0.36688,115840.0,115830.0,0.59358151]
[1758411177573,0.36588,115840.0,115830.0,0.59258151]
[1758411177996,0.36688,115840.0,115830.0,0.59458151]
[1758411182737,0.36888,115840.0,115830.0,0.59458151]
[1758411182978,0.39648,115840.0,115830.0,0.59458151]
[1758411184602,0.30316,115840.0,115830.0,0.59458151]
[1758411187013,0.30316,115840.0,115830.0,0.27228767]
[1758411187227,0.30316,115840.0,115830.0,0.59458151]
[1758411189333,0.39648,115840.0,115830.0,0.59458151]
[1758411193209,0.46648,115840.0,115830.0,0.59458151]
[1758411194137,0.1046,115840.0,115830.0,0.59458151]
[1758411194465,0.37308,115840.0,115830.0,0.59458151]
[1758411195068,0.37308,115840.0,115830.0,0.56862543]
[1758411211768,0.1046,115840.0,115830.0,0.56862543]
[1758411211954,0.34348,115840.0,115830.0,0.56862543]
[1758411212578,0.34545,115840.0,115830.0,0.56862543]
[1758411212807,0.3687,115840.0,115830.0,0.56862543]
[1758411213447,0.37172,115840.0,115830.0,0.56862543]
[1758411217331,0.10324,115840.0,115830.0,0.56862543]
[1758411217559,0.34545,115840.0,115830.0,0.56862543]
[1758411217784,0.34545,115840.0,115830.0,0.56859537]
[1758411218221,0.3687,115840.0,115830.0,0.56859537]
[1758411221279,0.075,115840.0,115830.0,0.56859537]
[1758411221494,0.34348,115840.0,115830.0,0.89158915]
[1758411221711,0.27348,115840.0,115830.0,0.89670915]
[1758411221868,0.27348,115840.0,115830.0,0.92266076]
[1758411222273,0.27348,115840.0,115830.0,0.92193076]
[1758411229503,0.27348,115840.0,115830.0,0.91681076]
[1758411243131,0.27348,115840.0,115830.0,1.18471076]
[1758411247453,0.005,115840.0,115830.0,1.18471076]
[1758411247936,0.005,115840.0,115830.0,0.91681076]
[1758411248313,0.00697,115840.0,115830.0,0.91681076]
[1758411249193,0.03408,115840.0,115830.0,0.91681076]
[1758411255157,0.03408,115840.0,115830.0,0.59454698]
[1758411267353,0.03408,115840.0,115830.0,0.2722832]
[1758411267530,0.03408,115840.0,115830.0,0.59454698]
[1758411279994,0.03408,115840.0,115830.0,0.59454996]
[1758411289924,0.03111,115840.0,115830.0,0.59454996]
[1758411293051,0.03106683,115840.0,115830.0,0.59454996]
[1758411296790,0.00495683,115840.0,115830.0,0.59454996]
[1758411300342,0.00691683,115840.0,115830.0,0.59454996]
[1758411300857,0.00691683,115840.0,115830.0,0.2722832]
[1758411301049,0.03447683,115840.0,115830.0,0.59454996]
[1758411304010,0.00691683,115840.0,115830.0,0.59454996]
[1758411313184,0.07691683,115840.0,115830.0,0.59454996]
[1758411332896,0.10464683,115840.0,115830.0,0.59454996]
[1758411333857,0.08012683,115840.0,115830.0,0.59337996]
[1758411334062,0.10464683,115840.0,115830.0,0.59337996]
[1758411338530,0.10464683,115840.0,115830.0,0.59454996]
[1758411341941,0.10464683,115840.0,115830.0,0.59455438]
[1758411345567,0.10464683,115840.0,115830.0,0.2711132]
[1758411349565,0.10464683,115840.0,115830.0,0.59338438]
[1758411356118,0.37300683,115840.0,115830.0,0.59338438]
[1758411362536,0.37300683,115840.0,115830.0,0.2711132]
[1758411362763,0.37300683,115840.0,115830.0,0.59338438]
[1758411363627,0.37300683,115840.0,115830.0,0.2711132]
[1758411367804,0.37300683,115840.0,115830.0,0.59338438]
[1758411376459,0.10464683,115840.0,115830.0,0.59338438]
[1758411376669,0.37300683,115840.0,115830.0,0.59338438]
[1758411378579,0.37300683,115840.0,115830.0,0.2711132]
[1758411381201,0.10464683,115840.0,115830.0,0.2711132]
[1758411381400,0.37296683,115840.0,115830.0,0.2711132]
[1758411386412,0.37296683,115840.0,115830.0,0.59338438]
[1758411403854,0.37296683,115840.0,115830.0,0.59340454]
[1758411407058,0.10464683,115840.0,115830.0,0.59340454]
[1758411407277,0.37296683,115840.0,115830.0,0.59340454]
[1758411411813,0.37292683,115840.0,115830.0,0.59340454]
[1758411412381,0.10464683,115840.0,115830.0,0.59340454]
[1758411412621,0.37292683,115840.0,115830.0,0.59340454]
[1758411414437,0.10464683,115840.0,115830.0,0.59340454]
[1758411414617,0.37292683,115840.0,115830.0,0.59340454]
[1758411414825,0.10464683,115840.0,115830.0,0.59340454]
[1758411415058,0.07495683,115840.0,115830.0,0.59969454]
[1758411415239,0.34323683,115840.0,115830.0,0.59969454]
[1758411415393,0.34323683,115840.0,115830.0,0.59457454]
[1758411417647,0.34537683,115840.0,115830.0,0.59457454]
[1758411418448,0.36926683,115840.0,115830.0,0.59457454]
[1758411419107,0.37239683,115840.0,115830.0,0.59457454]
[1758411420095,0.34537683,115840.0,115830.0,0.59457454]
[1758411420720,0.36926683,115840.0,115830.0,0.59457454]
[1758411427823,0.37249683,115840.0,115830.0,0.59457454]
[1758411429801,0.37249683,115840.0,115830.0,0.2722832]
[1758411429971,0.37249683,115840.0,115830.0,0.59457454]
[1758411432162,0.37249683,115840.0,115830.0,0.2711132]
[1758411432377,0.37249683,115840.0,115830.0,0.59340454]
[1758411447472,0.37249683,115840.0,115830.0,0.2711132]
[1758411447678,0.37249683,115840.0,115830.0,0.59340454]
[1758411451749,0.37249683,115840.0,115830.0,0.2711132]
[1758411451955,0.37249683,115840.0,115830.0,0.59340454]
[1758411465785,0.37249683,115840.0,115830.0,0.59340739]
[1758411477154,0.37249683,115840.0,115830.0,0.59457739]
[1758411480196,0.37249683,115840.0,115830.0,0.2722832]
[1758411480516,0.37249683,115840.0,115830.0,0.59457739]
[1758411483897,0.34537683,115840.0,115830.0,0.59457739]
[1758411484074,0.34315683,115840.0,115830.0,0.59457739]
[1758411484302,0.34315683,115840.0,115830.0,0.59969739]
[1758411484519,0.34315683,115840.0,115830.0,0.59457739]
[1758411491398,0.34510683,115840.0,115830.0,0.59457739]
[1758411493003,0.36958683,115840.0,115830.0,0.59457739]
[1758411497572,0.37257683,115840.0,115830.0,0.59457739]
[1758411505885,0.37257683,115840.0,115830.0,0.2722832]
[1758411506093,0.37257683,115840.0,115830.0,0.59457739]
[1758411506328,0.37257683,115840.0,115830.0,0.59340739]
[1758411515729,0.37257683,115840.0,115830.0,0.2711132]
[1758411515932,0.37257683,115840.0,115830.0,0.59340739]
[1758411519335,0.37257683,115840.0,115830.0,0.2711132]
[1758411520248,0.56661299,115840.0,115830.0,0.2711132]
[1758411520459,0.88890718,115840.0,115830.0,0.09844637]
[1758411520660,0.88890718,115840.0,115830.0,0.2711132]
[1758411527846,0.88897616,115840.0,115830.0,0.2711132]
[1758411535772,0.56661299,115840.0,115830.0,0.2711132]
[1758411536067,0.88897616,115840.0,115830.0,0.2711132]
[1758411537744,0.56661299,115840.0,115830.0,0.2711132]
[1758411537905,0.62077616,115840.0,115830.0,0.2711132]
[1758411538106,0.88897616,115840.0,115830.0,0.2711132]
[1758411550583,0.62077616,115840.0,115830.0,0.2711132]
[1758411550790,0.88893616,115840.0,115830.0,0.2711132]
[1758411551203,0.62077616,115840.0,115830.0,0.2711132]
[1758411551416,0.88893616,115840.0,115830.0,0.2711132]
[1758411553422,0.56657299,115840.0,115830.0,0.2711132]
[1758411553620,0.88893616,115840.0,115830.0,0.2711132]
[1758411556200,0.88893616,115840.0,115830.0,0.24516159]
[1758411562507,0.62077616,115840.0,115830.0,0.24516159]
[1758411562687,0.88893616,115840.0,115830.0,0.24516159]
[1758411564245,0.88893616,115840.0,115830.0,0.271116]
[1758411566309,1.7546584,115840.0,115830.0,0.07249476]
[1758411566511,1.76273729,115840.0,115830.0,0.07249476]
[1758411566733,1.78869559,115840.0,115830.0,0.07249476]
[1758411566942,1.80485395,115840.0,115830.0,0.07249476]
[1758411567350,2.08869559,115840.0,115830.0,0.07249476]
[1758411568558,2.08473876,115840.0,115830.0,0.06549476]
[1758411568959,2.09073876,115840.0,115830.0,0.06849476]
[1758411569362,2.08973876,115840.0,115830.0,0.06649476]
[1758411569798,2.09073876,115840.0,115830.0,0.06749476]
[1758411570941,1.82257876,115840.0,115830.0,0.06749476]
[1758411571151,2.09073876,115840.0,115830.0,0.06749476]
[1758411572545,1.82257876,115840.0,115830.0,0.06749476]
[1758411572742,2.09077876,115840.0,115830.0,0.06749476]
[1758411574315,2.08269987,115840.0,115830.0,0.06749476]
[1758411580444,2.08268006,115840.0,115830.0,0.06749476]
[1758411580618,2.07663954,115840.0,115830.0,0.06749476]
[1758411580824,2.08268,115840.0,115830.0,0.06749476]
[1758411585464,1.8446319,115840.0,115830.0,0.06749476]
[1758411585675,2.1128319,115840.0,115830.0,0.06749476]
[1758411586625,2.0860725,115840.0,115830.0,0.06749476]
[1758411587908,1.74240554,115840.0,115830.0,0.06749476]
[1758411589198,1.75046336,115840.0,115830.0,0.06749476]
[1758411589587,1.48226336,115840.0,115830.0,0.06749476]
[1758411589792,1.75046336,115840.0,115830.0,0.06749476]
[1758411595594,1.48226336,115840.0,115830.0,0.06749476]
[1758411595860,1.75046336,115840.0,115830.0,0.06749476]
[1758411596120,1.10054975,115840.0,115830.0,0.06866476]
[1758411596320,1.42299336,115840.0,115830.0,0.06866476]
[1758411596544,1.4169529,115840.0,115830.0,0.06866476]
[1758411596750,1.1005675,115840.0,115830.0,0.06866476]
[1758411596981,1.1272575,115840.0,115830.0,0.06866476]
[1758411597373,1.1272575,115840.0,115830.0,0.06749476]
[1758411603346,1.12727536,115840.0,115830.0,0.06749476]
[1758411610421,1.15149293,115840.0,115830.0,0.06749476]
[1758411611317,1.47393654,115840.0,115830.0,0.06749476]
[1758411621293,1.56729654,115840.0,115830.0,0.06749476]
[1758411622342,1.58345076,115840.0,115830.0,0.06749476]
[1758411625207,1.58345334,115840.0,115830.0,0.06749476]
[1758411629057,1.26100973,115840.0,115830.0,0.06749476]
[1758411629278,1.58345334,115840.0,115830.0,0.06749476]
[1758411629838,1.56729912,115840.0,115830.0,0.06749476]
[1758411634309,1.29909912,115840.0,115830.0,0.06749476]
[1758411634512,1.56725912,115840.0,115830.0,0.06749476]
[1758411636575,1.24481551,115840.0,115830.0,0.06749476]
[1758411641218,0.95291551,115840.0,115830.0,0.06749476]
[1758411641424,1.21004725,115840.0,115830.0,0.06866476]
[1758411641850,1.23262725,115840.0,115830.0,0.06749476]
[1758411642016,1.23574725,115840.0,115830.0,0.06749476]
[1758411643684,1.2357452,115840.0,115830.0,0.06749476]
[1758411649800,1.55812086,115840.0,115830.0,0.06749476]
[1758411650514,1.2357452,115840.0,115830.0,0.06749476]
[1758411650679,1.55812086,115840.0,115830.0,0.06749476]
[1758411658271,1.56619841,115840.0,115830.0,0.06749476]
[1758411659002,1.54024011,115840.0,115830.0,0.06749476]
[1758411663935,1.21786445,115840.0,115830.0,0.06749476]
[1758411664203,1.54024011,115840.0,115830.0,0.06749476]
[1758411674558,1.54024204,115840.0,115830.0,0.06749476]
[1758411676758,1.56620096,115840.0,115830.0,0.06749476]
[1758411681023,1.2438253,115840.0,115830.0,0.06749476]
[1758411681262,1.56620096,115840.0,115830.0,0.06749476]
[1758411684317,1.56621096,115840.0,115830.0,0.06749476]
[1758411685405,1.88858662,115840.0,115830.0,0.06749476]
[1758411690617,1.88858711,115840.0,115830.0,0.06749476]
[1758411697226,1.24383579,115840.0,115830.0,0.06749476]
[1758411697358,1.88858711,115840.0,115830.0,0.06749476]
[1758411702685,1.88858726,115840.0,115830.0,0.06749476]
[1758411705067,1.24383594,115840.0,115830.0,0.06749476]
[1758411705277,1.5662116,115840.0,115830.0,0.06749476]
[1758411708273,0.23974277,115840.0,115830.0,0.24133159]
[1758411708402,0.64318701,115840.0,115830.0,0.24133159]
[1758411708603,0.96556267,115840.0,115830.0,0.26728801]
[1758411709183,0.93960375,115840.0,115830.0,0.26728801]
[1758411709909,0.9395975,115840.0,115830.0,0.26728801]
[1758411710666,0.93959952,115840.0,115830.0,0.26728801]
[1758411711017,0.98189295,115840.0,115830.0,0.26728801]
[1758411712210,0.98397295,115840.0,115830.0,0.26728801]
[1758411713178,1.00688295,115840.0,115830.0,0.26728801]
[1758411714960,1.00989295,115840.0,115830.0,0.26728801]
[1758411716050,1.00989133,115840.0,115830.0,0.26728801]
[1758411717342,0.9675979,115840.0,115830.0,0.26728801]
[1758411718027,0.47257656,115840.0,115830.0,0.26728801]
[1758411718240,0.44453656,115840.0,115830.0,0.26728801]
[1758411718537,0.76690597,115840.0,115830.0,0.26728801]
[1758411718738,0.9395579,115840.0,115830.0,0.26728801]
[1758411718868,0.9661479,115840.0,115830.0,0.26728801]
[1758411719105,0.9693879,115840.0,115830.0,0.26728801]
[1758411720422,0.9693879,115840.0,115830.0,0.26611801]
[1758411721453,0.96333134,115840.0,115830.0,0.26611801]
[1758411721718,0.46831,115840.0,115830.0,0.26611801]
[1758411721948,0.79067941,115840.0,115830.0,0.26611801]
[1758411722185,0.96333134,115840.0,115830.0,0.26611801]
[1758411722324,0.98032051,115840.0,115830.0,0.26611801]
[1758411725711,0.98637545,115840.0,115830.0,0.26611801]
[1758411726090,0.81372352,115840.0,115830.0,0.26611801]
[1758411726300,0.49135411,115840.0,115830.0,0.26611801]
[1758411726511,0.96938628,115840.0,115830.0,0.26611801]
[1758411728033,0.96333134,115840.0,115830.0,0.26611801]
[1758411729081,0.79067941,115840.0,115830.0,0.26611801]
[1758411730021,0.96333134,115840.0,115830.0,0.26611801]
[1758411731076,0.86997134,115840.0,115830.0,0.26611801]
[1758411732231,0.87602687,115840.0,115830.0,0.26611801]
[1758411734431,0.89927644,115840.0,115830.0,0.26611801]
[1758411734966,0.57690703,115840.0,115830.0,0.26611801]
[1758411735172,0.89927644,115840.0,115830.0,0.26611801]
[1758411736334,0.89927644,115840.0,115830.0,0.24016159]
[1758411739866,0.87602687,115840.0,115830.0,0.24016159]
[1758411745528,0.96329134,115840.0,115830.0,0.24016159]
[1758411745753,0.96935001,115840.0,115830.0,0.24016159]
[1758411750445,0.87603001,115840.0,115830.0,0.24016159]
[1758411755793,0.70337808,115840.0,115830.0,0.24016159]
[1758411755999,0.87603001,115840.0,115830.0,0.24016159]
[1758411759257,0.5536606,115840.0,115830.0,0.24016159]
[1758411759399,0.87603001,115840.0,115830.0,0.24016159]
[1758411760008,0.88484067,115840.0,115830.0,0.24016159]
[1758411760743,0.56247126,115840.0,115830.0,0.24016159]
[1758411760952,0.88484067,115840.0,115830.0,0.24016159]
[1758411762754,0.29435126,115840.0,115830.0,0.24016159]
[1758411762923,0.88516067,115840.0,115830.0,0.24016159]
[1758411771829,0.88515944,115840.0,115830.0,0.24016159]
[1758411792043,0.87634878,115840.0,115830.0,0.24016159]
[1758411796734,0.87634878,115840.0,115830.0,0.26611801]
[1758411798782,0.9023052,115840.0,115830.0,0.26611801]
[1758411800643,0.90230668,115840.0,115830.0,0.26611801]
[1758411805943,0.5799385,115840.0,115830.0,0.26611801]
[1758411806173,0.90230668,115840.0,115830.0,0.26611801]
[1758411806822,0.72965475,115840.0,115830.0,0.26611801]
[1758411807009,0.87635026,115840.0,115830.0,0.26611801]
[1758411808775,0.87635045,115840.0,115830.0,0.26611801]
[1758411814905,0.60791045,115840.0,115830.0,0.26611801]
[1758411815048,0.87631045,115840.0,115830.0,0.26611801]
[1758411817399,0.9596641,115840.0,115830.0,0.26611801]
[1758411819651,0.60791045,115840.0,115830.0,0.26611801]
[1758411819865,0.87627045,115840.0,115830.0,0.26611801]
[1758411820789,0.90222687,115840.0,115830.0,0.26611801]
[1758411823305,0.57985869,115840.0,115830.0,0.26611801]
[1758411823533,0.90222687,115840.0,115830.0,0.26611801]
[1758411824037,0.94196296,115840.0,115830.0,0.26611801]
[1758411824287,0.90242687,115840.0,115830.0,0.26611801]
[1758411833833,0.90242053,115840.0,115830.0,0.26611801]
[1758411839008,0.58005869,115840.0,115830.0,0.26611801]
[1758411839219,0.90242053,115840.0,115830.0,0.26611801]
[1758411840726,0.90242109,115840.0,115830.0,0.26611801]
[1758411843427,0.63386109,115840.0,115830.0,0.26611801]
[1758411843628,0.90238108,115840.0,115830.0,0.26611801]
[1758411844413,0.97575781,115840.0,115830.0,0.26611801]
[1758411844819,0.97575781,115840.0,115830.0,0.24016159]
[1758411845052,0.97571781,115840.0,115830.0,0.24016159]
[1758411854915,0.90234108,115840.0,115830.0,0.24016159]
[1758411857452,0.57997924,115840.0,115830.0,0.24016159]
[1758411857657,0.90234108,115840.0,115830.0,0.24016159]
[1758411883333,0.90234108,115840.0,115830.0,0.06749476]
[1758411883566,0.90234192,115840.0,115830.0,0.08476144]
[1758411883787,0.98761159,115840.0,115830.0,0.08476144]
[1758411884708,1.01174797,115840.0,115830.0,0.08476144]
[1758411885319,1.01174797,115840.0,115830.0,0.25742827]
[1758411885543,1.10506797,115840.0,115830.0,0.24016159]
[1758411886041,1.10506797,115840.0,115830.0,0.06749476]
[1758411891395,1.10506797,115840.0,115830.0,0.24016159]
[1758411892008,1.01174797,115840.0,115830.0,0.24016159]
[1758411892966,1.01174797,115840.0,115830.0,0.06749476]
[1758411893902,1.33418315,115840.0,115830.0,0.06749476]
[1758411895198,1.33418315,115840.0,115830.0,0.24016159]
[1758411895606,1.33418315,115840.0,115830.0,0.06749476]
[1758411898141,1.33418315,115840.0,115830.0,0.08476144]
[1758411898870,1.06570315,115840.0,115830.0,0.08476144]
[1758411899067,1.33406315,115840.0,115830.0,0.08476144]
[1758411902159,1.33406315,115840.0,115830.0,0.06749476]
[1758411905385,1.33406315,115840.0,115830.0,0.08476144]
[1758411906848,1.33406315,115840.0,115830.0,0.06749476]
[1758411908504,1.33406315,115840.0,115830.0,0.08476144]
[1758411909540,1.42738315,115840.0,115830.0,0.08476144]
[1758411910669,1.42738147,115840.0,115830.0,0.08476144]
[1758411913630,1.42738147,115840.0,115830.0,0.06749476]
[1758411915531,1.15902147,115840.0,115830.0,0.06749476]
[1758411915749,1.33410147,115840.0,115830.0,0.06749476]
[1758411919741,1.42742147,115840.0,115830.0,0.06749476]
[1758411924971,1.40328509,115840.0,115830.0,0.06749476]
[1758411926349,1.40328509,115840.0,115830.0,0.08476144]
[1758411930018,1.42742147,115840.0,115830.0,0.08476144]
[1758411930784,1.42742147,115840.0,115830.0,0.25742827]
[1758411930981,1.42742147,115840.0,115830.0,0.24016159]
[1758411931181,1.42742147,115840.0,115830.0,0.26611801]
[1758411932308,1.42742147,115840.0,115830.0,0.09345118]
[1758411934752,1.42742147,115840.0,115830.0,0.11071786]
[1758411936465,1.42742147,115840.0,115830.0,0.28338469]
[1758411936665,1.42742147,115840.0,115830.0,0.26611801]
[1758411937185,0.78262445,115840.0,115830.0,0.26611801]
[1758411937395,1.10502296,115840.0,115830.0,0.26611801]
[1758411937601,1.10502296,115840.0,115830.0,0.09345118]
[1758411937804,1.10502296,115840.0,115830.0,0.11071786]
[1758411940613,1.10502296,115840.0,115830.0,0.28338469]
[1758411940789,1.10502296,115840.0,115830.0,0.26611801]
[1758411941636,1.10502296,115840.0,115830.0,0.09345118]
[1758411941817,1.10502296,115840.0,115830.0,0.11071786]
[1758411944369,1.10502296,115840.0,115830.0,0.08476144]
[1758411945721,1.10502296,115840.0,115830.0,0.25742827]
[1758411945952,1.10502296,115840.0,115830.0,0.24016159]
[1758411946133,1.42742147,115840.0,115830.0,0.24016159]
[1758411946951,1.42742226,115840.0,115830.0,0.24016159]
[1758411947462,1.42742226,115840.0,115830.0,0.06749476]
[1758411947699,1.42742226,115840.0,115830.0,0.08476144]
[1758411948527,1.42742226,115840.0,115830.0,0.25742827]
[1758411948730,1.42742226,115840.0,115830.0,0.24016159]
[1758411955044,1.40328588,115840.0,115830.0,0.24016159]
[1758411955189,1.42742226,115840.0,115830.0,0.24016159]
[1758411955863,1.10501862,115840.0,115830.0,0.24016159]
[1758411964557,1.10501862,115840.0,115830.0,0.06749476]
[1758411964801,1.10501862,115840.0,115830.0,0.08476144]
[1758411964977,1.10501862,115840.0,115830.0,0.25742827]
[1758411965180,1.10501862,115840.0,115830.0,0.24016159]
[1758411966430,0.78262524,115840.0,115830.0,0.24016159]
[1758411966587,1.10501862,115840.0,115830.0,0.24016159]
[1758411970877,1.10501862,115840.0,115830.0,0.06749476]
[1758411971102,1.10501862,115840.0,115830.0,0.08476144]
[1758411974408,1.10501862,115840.0,115830.0,0.25742827]
[1758411974582,1.10501862,115840.0,115830.0,0.24016159]
[1758411975327,1.10501862,115840.0,115830.0,0.06749476]
[1758411975843,1.10501862,115840.0,115830.0,0.08476144]
[1758411976073,1.10501862,115840.0,115830.0,0.25742827]
[1758411976292,1.10501862,115840.0,115830.0,0.06749476]
[1758411978513,1.10501862,115840.0,115830.0,0.24016159]
[1758411978771,0.78262524,115840.0,115830.0,0.24016159]
[1758411979014,1.10501862,115840.0,115830.0,0.24016159]
[1758411986948,1.10489862,115840.0,115830.0,0.24016159]
[1758411987289,0.78250524,115840.0,115830.0,0.24016159]
[1758411987477,0.69723557,115840.0,115830.0,0.24016159]
[1758411988097,0.69723557,115840.0,115830.0,0.26611801]
[1758411989013,0.42895557,115840.0,115830.0,0.26611801]
[1758411989263,0.69723557,115840.0,115830.0,0.26611801]
[1758411994783,0.69723557,115840.0,115830.0,0.24016159]
[1758412000180,0.69117473,115840.0,115830.0,0.24016159]
[1758412000403,0.78250383,115840.0,115830.0,0.24016159]
[1758412005570,0.75836745,115840.0,115830.0,0.24016159]
[1758412005954,0.78250383,115840.0,115830.0,0.24016159]
[1758412008215,0.69723416,115840.0,115830.0,0.24016159]
[1758412014145,0.69723506,115840.0,115830.0,0.24016159]
[1758412033364,0.69723624,115840.0,115830.0,0.24016159]
[1758412043259,0.69723624,115840.0,115830.0,0.56251482]
[1758412044998,0.69117473,115840.0,115830.0,0.56251482]
[1758412045152,0.69723625,115840.0,115830.0,0.56251482]
[1758412045703,0.78250592,115840.0,115830.0,0.56251482]
[1758412046405,0.78250592,115840.0,115830.0,0.58847124]
[1758412046562,0.69723625,115840.0,115830.0,0.58847124]
[1758412049560,0.69723625,115840.0,115830.0,0.09345118]
[1758412049740,0.69723625,115840.0,115830.0,0.41580441]
[1758412050261,1.01958948,115840.0,115830.0,0.09345118]
[1758412050722,0.69723625,115840.0,115830.0,0.26611801]
[1758412050912,0.78250592,115840.0,115830.0,0.26611801]
[1758412053098,0.42895625,115840.0,115830.0,0.58847124]
[1758412053320,0.69719625,115840.0,115830.0,0.56251482]
[1758412053900,0.69719625,115840.0,115830.0,0.24016159]
[1758412054292,0.69719625,115840.0,115830.0,0.56251482]
[1758412057148,0.6971964,115840.0,115830.0,0.56251482]
[1758412059457,0.78246607,115840.0,115830.0,0.56251482]
[1758412060317,0.78246607,115840.0,115830.0,0.24016159]
[1758412060508,0.78246607,115840.0,115830.0,0.56251482]
[1758412061499,0.78246607,115840.0,115830.0,0.24016159]
[1758412063027,0.6971964,115840.0,115830.0,0.24016159]
[1758412074715,0.67306002,115840.0,115830.0,0.24016159]
[1758412080027,0.20233809,115840.0,115830.0,0.56369248]
[1758412080238,0.35126167,115840.0,115830.0,0.56369248]
[1758412080487,0.08306167,115840.0,115830.0,0.88678337]
[1758412080780,0.077,115840.0,115830.0,0.91785869]
[1758412081003,0.077,115840.0,115830.0,1.00312836]
[1758412081455,0.076,115840.0,115830.0,1.00212836]
[1758412081845,0.077,115840.0,115830.0,1.00312836]
[1758412082201,0.071,115840.0,115830.0,1.00012836]
[1758412082831,0.07,115840.0,115830.0,0.99912836]
[1758412083683,0.073,115840.0,115830.0,1.00412836]
[1758412083933,0.07,115840.0,115830.0,0.99912836]
[1758412084114,0.071,115840.0,115830.0,1.27032836]
[1758412084290,0.075,115840.0,115830.0,1.28132836]
[1758412092418,0.075,115840.0,115830.0,1.01312836]
[1758412092666,0.075,115840.0,115830.0,1.28136836]
[1758412094434,0.075,115840.0,115830.0,1.62136836]
[1758412106169,0.075,115840.0,115830.0,1.62128836]
[1758412107901,0.075,115840.0,115830.0,1.35312836]
[1758412108102,0.075,115840.0,115830.0,1.62128836]
[1758412109375,0.075,115840.0,115830.0,1.88918836]
[1758412109583,0.075,115840.0,115830.0,1.24446658]
[1758412109795,0.075,115840.0,115830.0,1.88918836]
[1758412115188,0.005,115840.0,115830.0,1.88918836]
[1758412116579,0.005,115840.0,115830.0,2.28918836]
[1758412119642,0.005,115840.0,115830.0,1.87818836]
[1758412119643,0.001,115840.0,115830.0,1.87818836]
[1758412120007,0.005,115840.0,115830.0,1.62302836]
[1758412120238,0.004,115840.0,115830.0,1.62002836]
[1758412120439,0.005,115840.0,115830.0,1.89418836]
[1758412120640,0.005,115840.0,115830.0,1.62602836]
[1758412120991,0.005,115840.0,115830.0,1.89418836]